fUSD/lending_fUSD_20260611
["ID","MTS","AMOUNT","RATE_DAILY","PERIOD"]
[424826372,1781188421000,500.31,0.00020908,30]
[424826371,1781188421000,1673.62338417,8.388e-05,7]
[424826370,1781188421000,500.31,0.00020908,30]
[424826373,1781188422000,12210.06124512,8.224e-05,7]
[424826374,1781188422000,500.31,0.00020908,30]
[424826375,1781188422000,1181.48982299,8.635e-05,7]
[424826376,1781188422000,492.13356118,8.635e-05,7]
[424826381,1781188423000,500.31,0.00020908,30]
[424826380,1781188423000,12210.06124512,8.635e-05,7]
[424826379,1781188423000,1673.62338417,8.882e-05,7]
[424826378,1781188423000,500.31,0.00020908,30]
[424826377,1781188423000,12210.06124512,8.388e-05,7]
[424826382,1781188424000,1673.62338418,9.211e-05,7]
[424826384,1781188424000,12210.06124512,8.882e-05,7]
[424826383,1781188424000,500.31,0.00020908,30]
[424826388,1781188425000,500.31,0.00020908,30]
[424826387,1781188425000,3056.97100453,9.211e-05,7]
[424826386,1781188425000,9153.09024061,9.211e-05,7]
[424826385,1781188425000,500.31,0.00020908,30]
[424826389,1781188426000,500.31,0.0002095,30]
[424826392,1781188428000,500.31,0.0002095,30]
[424826391,1781188428000,500.31,0.0002095,30]
[424826390,1781188428000,500.31,0.0002095,30]
[424826393,1781188429000,500.31,0.0002095,30]
[424826395,1781188430000,500.31,0.0002095,30]
[424826394,1781188430000,500.31,0.0002095,30]
[424826396,1781188431000,500.31,0.00020992,30]
[424826397,1781188432000,500.31,0.00020992,30]
[424826399,1781188433000,500.31,0.00020992,30]
[424826398,1781188433000,500.31,0.00020992,30]
[424826400,1781188475000,152.0,0.0002095,30]
[424826401,1781188476000,152.0,0.0002095,30]
[424826402,1781188477000,152.0,0.00020992,30]
[424826403,1781188490000,150.0,8.224e-05,7]
[424826404,1781188491000,150.0,8.388e-05,7]
[424826405,1781188491000,150.0,8.635e-05,7]
[424826406,1781188492000,150.0,8.882e-05,7]
[424826408,1781188493000,150.0,9.211e-05,7]
[424826407,1781188493000,150.0,9.211e-05,7]
[424826409,1781188494000,150.0,9.211e-05,7]
[424826413,1781188496000,150.0,9.211e-05,7]
[424826412,1781188496000,150.0,9.211e-05,7]
[424826411,1781188496000,150.0,9.211e-05,7]
[424826410,1781188496000,150.0,9.211e-05,7]
[424826414,1781188497000,150.0,9.211e-05,7]
[424826415,1781188498000,150.0,9.211e-05,7]
[424826416,1781188498000,150.0,9.211e-05,7]
[424826417,1781188499000,237.51787565,9.211e-05,7]
[424826418,1781188603000,209.02800424,8.388e-05,7]
[424826419,1781188604000,313.54200636,8.882e-05,7]
[424826420,1781188684000,200.0,8.309e-05,7]
[424826421,1781188686000,200.0,8.309e-05,7]
[424826423,1781188688000,200.0,8.309e-05,7]
[424826422,1781188688000,200.0,8.309e-05,7]
[424826424,1781188689000,200.0,8.309e-05,7]
[424826425,1781188690000,200.0,8.309e-05,7]
[424826426,1781188691000,200.0,8.309e-05,7]
[424826427,1781188693000,200.0,8.309e-05,7]
[424826428,1781188694000,200.0,8.309e-05,7]
[424826429,1781188695000,200.0,8.309e-05,7]
[424826430,1781188696000,200.0,8.309e-05,7]
[424826431,1781188698000,200.0,8.309e-05,7]
[424826433,1781189283000,268.9264497,0.0002,30]
[424826434,1781189320000,152.0,9.182e-05,7]
[424826437,1781189322000,152.0,9.177e-05,7]
[424826436,1781189322000,152.0,9.177e-05,7]
[424826435,1781189322000,152.0,9.177e-05,7]
[424826438,1781189382000,300.0,0.00021,120]
[424826446,1781189391000,-200.0,7.903e-05,2]
[424826445,1781189391000,-200.0,7.903e-05,2]
[424826443,1781189391000,-200.0,7.903e-05,2]
[424826444,1781189391000,-200.0,7.903e-05,2]
[424826442,1781189391000,-200.0,7.903e-05,2]
[424826441,1781189391000,-200.0,7.903e-05,2]
[424826440,1781189391000,-200.0,7.903e-05,2]
[424826439,1781189391000,-200.0,7.903e-05,2]
[424826447,1781189391000,-172.33055205,7.903e-05,2]
[424826448,1781189417000,179.0,9.177e-05,7]
[424826449,1781189417000,179.0,9.177e-05,7]
[424826450,1781189418000,179.0,9.177e-05,7]
[424826451,1781189419000,179.0,9.177e-05,7]
[424826496,1781189432000,-500.0,0.00013424,2]
[424826479,1781189432000,-159.32,0.00012675,2]
[424826482,1781189432000,-193.53850199,0.00012917,2]
[424826483,1781189432000,-166.66,0.00012919,2]
[424826478,1781189432000,-166.66,0.00012668,2]
[424826481,1781189432000,-347.14,0.0001284,2]
[424826484,1781189432000,-166.66,0.0001317,2]
[424826486,1781189432000,-391.28,0.00013181,2]
[424826485,1781189432000,-199.5,0.00013176,2]
[424826487,1781189432000,-174.49196539,0.00013204,2]
[424826494,1781189432000,-213.21,0.00013207,2]
[424826492,1781189432000,-1191.97,0.00013207,2]
[424826489,1781189432000,-174.98940847,0.00013207,2]
[424826493,1781189432000,-9999.99,0.00013207,2]
[424826497,1781189432000,-500.0,0.00013424,2]
[424826491,1781189432000,-4967.21,0.00013207,2]
[424826490,1781189432000,-150.99,0.00013207,2]
[424826480,1781189432000,-426.84,0.00012761,2]
[424826488,1781189432000,-166.66,0.00013204,2]
[424826476,1781189432000,-165.55,0.00012565,2]
[424826475,1781189432000,-174.98940847,0.00012547,2]
[424826457,1781189432000,-200.0,7.903e-05,2]
[424826498,1781189432000,-500.0,0.00013424,2]
[424826456,1781189432000,-27.66944795,7.903e-05,2]
[424826462,1781189432000,-151.67122036,0.00010408,7]
[424826459,1781189432000,-200.0,7.903e-05,2]
[424826460,1781189432000,-200.0,7.903e-05,2]
[424826461,1781189432000,-150.0,8.176e-05,2]
[424826458,1781189432000,-200.0,7.903e-05,2]
[424826477,1781189432000,-543.56,0.00012565,2]
[424826463,1781189432000,-160.0,0.00011128,2]
[424826464,1781189432000,-215.95576085,0.00011128,2]
[424826465,1781189432000,-166.66,0.00011916,2]
[424826474,1781189432000,-174.98940849,0.00012547,2]
[424826467,1781189432000,-166.66,0.00012167,2]
[424826468,1781189432000,-180.17301812,0.00012329,2]
[424826471,1781189432000,-257.71400589,0.00012407,2]
[424826473,1781189432000,-166.66,0.00012417,2]
[424826469,1781189432000,-180.17301812,0.00012329,2]
[424826466,1781189432000,-189.53933324,0.0001204,2]
[424826495,1781189432000,-500.0,0.00013424,2]
[424826538,1781189432000,-150.0,0.00013668,2]
[424826500,1781189432000,-500.0,0.00013424,2]
[424826530,1781189432000,-150.0,0.00013622,2]
[424826525,1781189432000,-150.0,0.00013606,2]
[424826529,1781189432000,-150.0,0.00013608,2]
[424826527,1781189432000,-248.468157,0.00013606,2]
[424826523,1781189432000,-4180.8023,0.00013598,2]
[424826524,1781189432000,-2500.0,0.00013599,2]
[424826528,1781189432000,-167.662151,0.00013606,2]
[424826526,1781189432000,-234.932113,0.00013606,2]
[424826531,1781189432000,-150.0,0.0001363,2]
[424826532,1781189432000,-1500.0,0.00013637,2]
[424826539,1781189432000,-150.0,0.00013673,2]
[424826537,1781189432000,-150.0,0.00013656,2]
[424826535,1781189432000,-150.0,0.00013645,2]
[424826536,1781189432000,-150.0,0.00013654,2]
[424826540,1781189432000,-250.0,0.0001369,2]
[424826533,1781189432000,-150.0,0.00013639,2]
[424826499,1781189432000,-532.0,0.00013424,2]
[424826521,1781189432000,-150.0,0.00013589,2]
[424826522,1781189432000,-2539.89407136,0.00013598,2]
[424826534,1781189432000,-166.66,0.0001364,2]
[424826518,1781189432000,-150.0,0.00013567,2]
[424826517,1781189432000,-150.0,0.00013559,2]
[424826507,1781189432000,-150.0,0.00013488,2]
[424826508,1781189432000,-150.0,0.00013488,2]
[424826509,1781189432000,-150.0,0.00013488,2]
[424826506,1781189432000,-150.0,0.00013488,2]
[424826503,1781189432000,-500.0,0.00013424,2]
[424826501,1781189432000,-500.0,0.00013424,2]
[424826504,1781189432000,-467.8377148,0.00013424,2]
[424826505,1781189432000,-150.0,0.00013488,2]
[424826502,1781189432000,-500.0,0.00013424,2]
[424826511,1781189432000,-150.0,0.00013488,2]
[424826520,1781189432000,-150.0,0.00013572,2]
[424826512,1781189432000,-150.0,0.00013505,2]
[424826514,1781189432000,-150.0,0.00013538,2]
[424826513,1781189432000,-150.0,0.00013521,2]
[424826515,1781189432000,-150.0,0.00013548,2]
[424826516,1781189432000,-150.0,0.00013555,2]
[424826510,1781189432000,-150.0,0.00013488,2]
[424826519,1781189432000,-150.0,0.00013571,2]
[424826556,1781189433000,-500.0,0.00013698,2]
[424826559,1781189433000,-500.0,0.00013698,2]
[424826558,1781189433000,-500.0,0.00013698,2]
[424826560,1781189433000,-500.0,0.00013698,2]
[424826562,1781189433000,-500.0,0.00013698,2]
[424826565,1781189433000,-292.30346816,0.00013698,2]
[424826564,1781189433000,-500.0,0.00013698,2]
[424826561,1781189433000,-500.0,0.00013698,2]
[424826555,1781189433000,-500.0,0.00013698,2]
[424826566,1781189433000,-500.0,0.00013698,2]
[424826563,1781189433000,-415.12475003,0.00013698,2]
[424826552,1781189433000,-500.0,0.00013698,2]
[424826544,1781189433000,-500.0,0.00013698,2]
[424826548,1781189433000,-500.0,0.00013698,2]
[424826551,1781189433000,-500.0,0.00013698,2]
[424826553,1781189433000,-500.0,0.00013698,2]
[424826545,1781189433000,-500.0,0.00013698,2]
[424826550,1781189433000,-500.0,0.00013698,2]
[424826546,1781189433000,-500.0,0.00013698,2]
[424826547,1781189433000,-500.0,0.00013698,2]
[424826549,1781189433000,-500.0,0.00013698,2]
[424826542,1781189433000,-500.0,0.00013698,2]
[424826541,1781189433000,-150.0,0.0001369,2]
[424826557,1781189433000,-500.0,0.00013698,2]
[424826554,1781189433000,-500.0,0.00013698,2]
[424826568,1781189433000,-500.0,0.00013698,2]
[424826543,1781189433000,-500.0,0.00013698,2]
[424826569,1781189433000,-500.0,0.00013698,2]
[424826594,1781189433000,-321.10771195,0.00013698,2]
[424826593,1781189433000,-500.0,0.00013698,2]
[424826592,1781189433000,-502.88764057,0.00013698,2]
[424826567,1781189433000,-500.0,0.00013698,2]
[424826591,1781189433000,-500.0,0.00013698,2]
[424826589,1781189433000,-412.83632998,0.00013698,2]
[424826588,1781189433000,-6.39217989,0.00013698,2]
[424826587,1781189433000,-493.60782011,0.00013698,2]
[424826585,1781189433000,-500.0,0.00013698,2]
[424826581,1781189433000,-485.61583706,0.00013698,2]
[424826582,1781189433000,-14.38416294,0.00013698,2]
[424826583,1781189433000,-500.0,0.00013698,2]
[424826590,1781189433000,-87.16367002,0.00013698,2]
[424826584,1781189433000,-500.0,0.00013698,2]
[424826586,1781189433000,-500.0,0.00013698,2]
[424826570,1781189433000,-500.0,0.00013698,2]
[424826571,1781189433000,-500.0,0.00013698,2]
[424826574,1781189433000,-500.0,0.00013698,2]
[424826572,1781189433000,-500.0,0.00013698,2]
[424826575,1781189433000,-500.0,0.00013698,2]
[424826573,1781189433000,-500.0,0.00013698,2]
[424826577,1781189433000,-500.0,0.00013698,2]
[424826576,1781189433000,-500.0,0.00013698,2]
[424826578,1781189433000,-500.0,0.00013698,2]
[424826580,1781189433000,-500.0,0.00013698,2]
[424826579,1781189433000,-500.0,0.00013698,2]
[424826602,1781189437000,-500.0,0.00013698,2]
[424826611,1781189437000,-500.0,0.00013698,2]
[424826608,1781189437000,-500.0,0.00013698,2]
[424826606,1781189437000,-500.0,0.00013698,2]
[424826607,1781189437000,-500.0,0.00013698,2]
[424826601,1781189437000,-557.54165227,0.00013698,2]
[424826599,1781189437000,-500.0,0.00013698,2]
[424826603,1781189437000,-500.0,0.00013698,2]
[424826604,1781189437000,-500.0,0.00013698,2]
[424826600,1781189437000,-500.0,0.00013698,2]
[424826598,1781189437000,-230.7824254,0.00013698,2]
[424826610,1781189437000,-500.0,0.00013698,2]
[424826605,1781189437000,-500.0,0.00013698,2]
[424826619,1781189437000,-500.0,0.00013698,2]
[424826609,1781189437000,-500.0,0.00013698,2]
[424826622,1781189437000,-258.55593588,0.00013698,2]
[424826627,1781189437000,-500.0,0.00013698,2]
[424826625,1781189437000,-500.0,0.00013698,2]
[424826624,1781189437000,-500.0,0.00013698,2]
[424826626,1781189437000,-500.0,0.00013698,2]
[424826616,1781189437000,-500.0,0.00013698,2]
[424826621,1781189437000,-241.44406412,0.00013698,2]
[424826623,1781189437000,-500.0,0.00013698,2]
[424826620,1781189437000,-500.0,0.00013698,2]
[424826618,1781189437000,-500.0,0.00013698,2]
[424826617,1781189437000,-500.0,0.00013698,2]
[424826615,1781189437000,-500.0,0.00013698,2]
[424826614,1781189437000,-78.55593586,0.00013698,2]
[424826612,1781189437000,-500.0,0.00013698,2]
[424826613,1781189437000,-421.44406414,0.00013698,2]
[424826692,1781189438000,-500.0,0.00013698,2]
[424826672,1781189438000,-500.0,0.00013698,2]
[424826680,1781189438000,-500.0,0.00013698,2]
[424826673,1781189438000,-500.0,0.00013698,2]
[424826675,1781189438000,-500.0,0.00013698,2]
[424826674,1781189438000,-500.0,0.00013698,2]
[424826677,1781189438000,-500.0,0.00013698,2]
[424826676,1781189438000,-500.0,0.00013698,2]
[424826679,1781189438000,-500.0,0.00013698,2]
[424826670,1781189438000,-500.0,0.00013698,2]
[424826682,1781189438000,-500.0,0.00013698,2]
[424826678,1781189438000,-500.0,0.00013698,2]
[424826685,1781189438000,-500.0,0.00013698,2]
[424826691,1781189438000,-500.0,0.00013698,2]
[424826681,1781189438000,-500.0,0.00013698,2]
[424826683,1781189438000,-500.0,0.00013698,2]
[424826686,1781189438000,-500.0,0.00013698,2]
[424826688,1781189438000,-500.0,0.00013698,2]
[424826687,1781189438000,-500.0,0.00013698,2]
[424826689,1781189438000,-500.0,0.00013698,2]
[424826690,1781189438000,-500.0,0.00013698,2]
[424826693,1781189438000,-500.0,0.00013698,2]
[424826699,1781189438000,-500.0,0.00013698,2]
[424826698,1781189438000,-500.0,0.00013698,2]
[424826694,1781189438000,-500.0,0.00013698,2]
[424826704,1781189438000,-500.0,0.00013698,2]
[424826684,1781189438000,-500.0,0.00013698,2]
[424826671,1781189438000,-500.0,0.00013698,2]
[424826632,1781189438000,-500.0,0.00013698,2]
[424826663,1781189438000,-2187.21,0.00013698,2]
[424826701,1781189438000,-500.0,0.00013698,2]
[424826629,1781189438000,-500.0,0.00013698,2]
[424826628,1781189438000,-500.0,0.00013698,2]
[424826631,1781189438000,-500.0,0.00013698,2]
[424826630,1781189438000,-364.5,0.00013698,2]
[424826644,1781189438000,-2187.21,0.00013698,2]
[424826634,1781189438000,-500.0,0.00013698,2]
[424826643,1781189438000,-2187.21,0.00013698,2]
[424826642,1781189438000,-500.0,0.00013698,2]
[424826635,1781189438000,-500.0,0.00013698,2]
[424826633,1781189438000,-500.0,0.00013698,2]
[424826636,1781189438000,-500.0,0.00013698,2]
[424826637,1781189438000,-500.0,0.00013698,2]
[424826639,1781189438000,-500.0,0.00013698,2]
[424826638,1781189438000,-500.0,0.00013698,2]
[424826640,1781189438000,-500.0,0.00013698,2]
[424826641,1781189438000,-500.0,0.00013698,2]
[424826648,1781189438000,-2187.21,0.00013698,2]
[424826650,1781189438000,-2187.21,0.00013698,2]
[424826652,1781189438000,-2187.21,0.00013698,2]
[424826646,1781189438000,-2187.21,0.00013698,2]
[424826665,1781189438000,-2187.21,0.00013698,2]
[424826654,1781189438000,-2187.21,0.00013698,2]
[424826656,1781189438000,-2187.21,0.00013698,2]
[424826660,1781189438000,-2187.21,0.00013698,2]
[424826667,1781189438000,-500.0,0.00013698,2]
[424826658,1781189438000,-2187.21,0.00013698,2]
[424826669,1781189438000,-500.0,0.00013698,2]
[424826700,1781189438000,-500.0,0.00013698,2]
[424826732,1781189438000,-150.0,0.00013727,2]
[424826696,1781189438000,-500.0,0.00013698,2]
[424826730,1781189438000,-150.0,0.00013723,2]
[424826734,1781189438000,-150.0,0.0001374,2]
[424826733,1781189438000,-150.0,0.00013737,2]
[424826738,1781189438000,-2539.89407136,0.00013743,2]
[424826739,1781189438000,-150.0,0.00013757,2]
[424826735,1781189438000,-216.12699,0.00013742,2]
[424826736,1781189438000,-265.560036,0.00013742,2]
[424826737,1781189438000,-500.0,0.00013742,2]
[424826740,1781189438000,-221.0,0.00013767,2]
[424826745,1781189438000,-381.95853578,0.00013787,2]
[424826743,1781189438000,-820.76710749,0.00013782,2]
[424826744,1781189438000,-4623.32799509,0.00013783,2]
[424826748,1781189438000,-17600.0,0.000138,5]
[424826754,1781189438000,-150.0,0.00013841,2]
[424826747,1781189438000,-150.0,0.00013791,2]
[424826753,1781189438000,-150.0,0.00013824,2]
[424826752,1781189438000,-150.0,0.00013821,2]
[424826751,1781189438000,-150.0,0.00013808,2]
[424826746,1781189438000,-150.0,0.00013787,2]
[424826750,1781189438000,-150.0,0.00013803,2]
[424826749,1781189438000,-188.14874168,0.000138,10]
[424826756,1781189438000,-150.0,0.00013847,2]
[424826755,1781189438000,-150.0,0.00013844,2]
[424826757,1781189438000,-150.0,0.00013858,2]
[424826758,1781189438000,-150.0,0.00013862,2]
[424826695,1781189438000,-500.0,0.00013698,2]
[424826760,1781189438000,-150.0,0.00013875,2]
[424826742,1781189438000,-150.0,0.00013774,2]
[424826741,1781189438000,-150.0,0.00013773,2]
[424826759,1781189438000,-807.9551411,0.00013864,2]
[424826728,1781189438000,-150.0,0.00013702,2]
[424826731,1781189438000,-150.0,0.00013724,2]
[424826702,1781189438000,-500.0,0.00013698,2]
[424826705,1781189438000,-500.0,0.00013698,2]
[424826697,1781189438000,-500.0,0.00013698,2]
[424826707,1781189438000,-500.0,0.00013698,2]
[424826706,1781189438000,-504.05769263,0.00013698,2]
[424826708,1781189438000,-500.0,0.00013698,2]
[424826709,1781189438000,-500.0,0.00013698,2]
[424826711,1781189438000,-500.0,0.00013698,2]
[424826710,1781189438000,-500.0,0.00013698,2]
[424826712,1781189438000,-527.02640831,0.00013698,2]
[424826713,1781189438000,-2500.0,0.00013699,2]
[424826715,1781189438000,-259.67,0.00013699,2]
[424826716,1781189438000,-216.39,0.00013699,2]
[424826703,1781189438000,-500.0,0.00013698,2]
[424826718,1781189438000,-150.27,0.00013699,2]
[424826725,1781189438000,-600.11152647,0.00013699,2]
[424826720,1781189438000,-409.28734248,0.00013699,2]
[424826722,1781189438000,-500.0,0.00013699,2]
[424826717,1781189438000,-180.33,0.00013699,2]
[424826724,1781189438000,-500.0,0.00013699,2]
[424826723,1781189438000,-500.0,0.00013699,2]
[424826726,1781189438000,-6768.6734423,0.000137,2]
[424826729,1781189438000,-150.0,0.00013707,2]
[424826721,1781189438000,-22261.86,0.00013699,2]
[424826719,1781189438000,-751.4,0.00013699,2]
[424826714,1781189438000,-200.0,0.00013699,2]
[424826727,1781189438000,-8800.0,0.000137,5]
[424826812,1781189439000,-500.0,0.00013882,2]
[424826813,1781189439000,-500.0,0.00013882,2]
[424826815,1781189439000,-500.0,0.00013882,2]
[424826814,1781189439000,-500.0,0.00013882,2]
[424826798,1781189439000,-500.0,0.00013882,2]
[424826807,1781189439000,-500.0,0.00013882,2]
[424826803,1781189439000,-500.0,0.00013882,2]
[424826805,1781189439000,-500.0,0.00013882,2]
[424826801,1781189439000,-500.0,0.00013882,2]
[424826796,1781189439000,-500.0,0.00013882,2]
[424826810,1781189439000,-500.0,0.00013882,2]
[424826816,1781189439000,-500.0,0.00013882,2]
[424826817,1781189439000,-500.0,0.00013882,2]
[424826827,1781189439000,-500.0,0.00013882,2]
[424826824,1781189439000,-500.0,0.00013882,2]
[424826825,1781189439000,-500.0,0.00013882,2]
[424826823,1781189439000,-500.0,0.00013882,2]
[424826826,1781189439000,-500.0,0.00013882,2]
[424826821,1781189439000,-500.0,0.00013882,2]
[424826820,1781189439000,-500.0,0.00013882,2]
[424826822,1781189439000,-500.0,0.00013882,2]
[424826829,1781189439000,-500.0,0.00013882,2]
[424826828,1781189439000,-500.0,0.00013882,2]
[424826839,1781189439000,-500.0,0.00013882,2]
[424826786,1781189439000,-500.0,0.00013882,2]
[424826818,1781189439000,-500.0,0.00013882,2]
[424826785,1781189439000,-174.0834655,0.00013882,2]
[424826773,1781189439000,-500.0,0.00013882,2]
[424826783,1781189439000,-500.0,0.00013882,2]
[424826835,1781189439000,-500.0,0.00013882,2]
[424826766,1781189439000,-500.0,0.00013881,2]
[424826765,1781189439000,-278.60891467,0.00013879,2]
[424826761,1781189439000,-150.0,0.00013879,2]
[424826762,1781189439000,-150.0,0.00013879,2]
[424826764,1781189439000,-150.0,0.00013879,2]
[424826763,1781189439000,-150.0,0.00013879,2]
[424826767,1781189439000,-561.81,0.00013881,2]
[424826768,1781189439000,-500.0,0.00013881,2]
[424826778,1781189439000,-500.0,0.00013882,2]
[424826771,1781189439000,-150.0,0.00013882,2]
[424826769,1781189439000,-500.0,0.00013881,2]
[424826784,1781189439000,-500.0,0.00013882,2]
[424826770,1781189439000,-238.48508219,0.00013881,2]
[424826774,1781189439000,-500.0,0.00013882,2]
[424826775,1781189439000,-500.0,0.00013882,2]
[424826772,1781189439000,-500.0,0.00013882,2]
[424826777,1781189439000,-500.0,0.00013882,2]
[424826780,1781189439000,-500.0,0.00013882,2]
[424826788,1781189439000,-500.0,0.00013882,2]
[424826790,1781189439000,-500.0,0.00013882,2]
[424826792,1781189439000,-500.0,0.00013882,2]
[424826781,1781189439000,-500.0,0.00013882,2]
[424826779,1781189439000,-500.0,0.00013882,2]
[424826794,1781189439000,-500.0,0.00013882,2]
[424826782,1781189439000,-500.0,0.00013882,2]
[424826776,1781189439000,-500.0,0.00013882,2]
[424826836,1781189439000,-500.0,0.00013882,2]
[424826819,1781189439000,-500.0,0.00013882,2]
[424826834,1781189439000,-500.0,0.00013882,2]
[424826867,1781189439000,-500.0,0.00013882,2]
[424826865,1781189439000,-500.0,0.00013882,2]
[424826866,1781189439000,-500.0,0.00013882,2]
[424826870,1781189439000,-500.0,0.00013882,2]
[424826875,1781189439000,-500.0,0.00013882,2]
[424826868,1781189439000,-500.0,0.00013882,2]
[424826874,1781189439000,-500.0,0.00013882,2]
[424826871,1781189439000,-500.0,0.00013882,2]
[424826869,1781189439000,-500.0,0.00013882,2]
[424826873,1781189439000,-500.0,0.00013882,2]
[424826872,1781189439000,-500.0,0.00013882,2]
[424826876,1781189439000,-500.0,0.00013882,2]
[424826864,1781189439000,-500.0,0.00013882,2]
[424826887,1781189439000,-500.0,0.00013882,2]
[424826881,1781189439000,-500.0,0.00013882,2]
[424826877,1781189439000,-500.0,0.00013882,2]
[424826880,1781189439000,-500.0,0.00013882,2]
[424826879,1781189439000,-500.0,0.00013882,2]
[424826885,1781189439000,-500.0,0.00013882,2]
[424826883,1781189439000,-500.0,0.00013882,2]
[424826882,1781189439000,-500.0,0.00013882,2]
[424826886,1781189439000,-500.0,0.00013882,2]
[424826888,1781189439000,-500.0,0.00013882,2]
[424826890,1781189439000,-500.0,0.00013882,2]
[424826889,1781189439000,-500.0,0.00013882,2]
[424826830,1781189439000,-500.0,0.00013882,2]
[424826878,1781189439000,-500.0,0.00013882,2]
[424826861,1781189439000,-500.0,0.00013882,2]
[424826884,1781189439000,-500.0,0.00013882,2]
[424826862,1781189439000,-500.0,0.00013882,2]
[424826857,1781189439000,-500.0,0.00013882,2]
[424826831,1781189439000,-500.0,0.00013882,2]
[424826832,1781189439000,-500.0,0.00013882,2]
[424826833,1781189439000,-500.0,0.00013882,2]
[424826838,1781189439000,-500.0,0.00013882,2]
[424826842,1781189439000,-500.0,0.00013882,2]
[424826841,1781189439000,-500.0,0.00013882,2]
[424826851,1781189439000,-500.0,0.00013882,2]
[424826840,1781189439000,-500.0,0.00013882,2]
[424826845,1781189439000,-500.0,0.00013882,2]
[424826850,1781189439000,-500.0,0.00013882,2]
[424826847,1781189439000,-500.0,0.00013882,2]
[424826891,1781189439000,-500.0,0.00013882,2]
[424826837,1781189439000,-500.0,0.00013882,2]
[424826848,1781189439000,-500.0,0.00013882,2]
[424826849,1781189439000,-500.0,0.00013882,2]
[424826860,1781189439000,-500.0,0.00013882,2]
[424826858,1781189439000,-500.0,0.00013882,2]
[424826854,1781189439000,-500.0,0.00013882,2]
[424826855,1781189439000,-500.0,0.00013882,2]
[424826859,1781189439000,-500.0,0.00013882,2]
[424826863,1781189439000,-335.0,0.00013882,2]
[424826846,1781189439000,-500.0,0.00013882,2]
[424826852,1781189439000,-500.0,0.00013882,2]
[424826844,1781189439000,-500.0,0.00013882,2]
[424826843,1781189439000,-500.0,0.00013882,2]
[424826856,1781189439000,-500.0,0.00013882,2]
[424826853,1781189439000,-500.0,0.00013882,2]
[424826920,1781189440000,-500.0,0.00013882,2]
[424826921,1781189440000,-500.0,0.00013882,2]
[424826913,1781189440000,-500.0,0.00013882,2]
[424826934,1781189440000,-500.0,0.00013882,2]
[424826916,1781189440000,-500.0,0.00013882,2]
[424826933,1781189440000,-271.11603606,0.00013882,2]
[424826932,1781189440000,-500.0,0.00013882,2]
[424826924,1781189440000,-500.0,0.00013882,2]
[424826925,1781189440000,-500.0,0.00013882,2]
[424826922,1781189440000,-500.0,0.00013882,2]
[424826931,1781189440000,-500.0,0.00013882,2]
[424826927,1781189440000,-500.0,0.00013882,2]
[424826926,1781189440000,-500.0,0.00013882,2]
[424826928,1781189440000,-500.0,0.00013882,2]
[424826929,1781189440000,-500.0,0.00013882,2]